Cogmind - Beta 13 @@@ ROGUE MODE // 2024.04.15 @ 23:42:01 Player: AntinDisguise Result: Smashed by cave-in Performance ------------- Evolutions (0) 0 Regions Visited (1) 200 Robots Destroyed (15) 75 Value Destroyed (182) 182 Prototype IDs (0) 0 Alien Tech Used (0) 0 Bonus (0) 0 TOTAL SCORE: 457 Bonus ------- None Cogmind --------- Core Integrity 0/250 Matter 190/300 Energy 100/100 System Corruption 12% Temperature Cool (18) Movement Rolling (115) Ox1 Location -10/Materials Parts ------- > --- POWER (1) -------- (None) > --- PROPULSION (2) --- Compact Wheel > --- UTILITY (2) ------ Large Storage Unit > --- WEAPON (2) ------- Medium Laser > --- INVENTORY (15) --- Light Treads Light Treads Light Treads Huge Storage Unit Weight Redist. System Light Cannon Peak State ------------ > --- POWER ------------ Ion Engine > --- PROPULSION ------- Wheel Compact Wheel > --- UTILITY ---------- Small Storage Unit Improved Terrain Scanner > --- WEAPON ----------- Medium Laser Assault Rifle > --- INVENTORY -------- Light Treads Light Treads Light Treads Huge Storage Unit Weight Redist. System Improved Terrain Scanner Grenade Launcher [Rating: 10] Favorites ----------- Power Ion Engine Engine Ion Engine Propulsion Wheel Treads Light Treads Wheel Wheel Utility Improved Terrain Scanner Device Improved Terrain Scanner Storage Small Storage Unit Weapon Medium Laser Energy Gun Medium Laser Ballistic Gun Assault Rifle Launcher Grenade Launcher Build | -11 -10 ------- Run | Yrd Mat Slots Evolved . | . . Power . | . . Propulsion . | . . Utility . | . . Weapon . | . . Parts Attached 13 | 8 5 Power 2 | 1 1 Engine 2 | 1 1 Core . | . . Reactor . | . . Propulsion 3 | 3 . Treads 1 | 1 . Leg . | . . Wheel 2 | 2 . Hover . | . . Flight . | . . Utility 4 | 2 2 Device 2 | 1 1 Storage 2 | 1 1 Processor . | . . Hackware . | . . Protection . | . . Artifact . | . . Weapon 4 | 2 2 Energy Gun 2 | 1 1 Energy Cannon . | . . Ballistic Gun 1 | 1 . Ballistic Cannon . | . . Launcher 1 | . 1 Special Weapon . | . . Impact Weapon . | . . Slashing Weapon . | . . Piercing Weapon . | . . Special Melee Weapon . | . . Unidentified Prototypes . | . . Parts Lost 8 | . 8 Power 2 | . 2 Propulsion 1 | . 1 Utility 2 | . 2 Weapon 3 | . 3 Highest Loss Streak 4 | . 4 To Critical Strikes . | . . Average Slot Usage (%) 97 | . 97 Engine 13 | . 13 Wheel 28 | . 28 Device 14 | . 14 Storage 14 | . 14 Energy Gun 12 | . 12 Ballistic Gun 8 | . 8 Launcher 5 | . 5 Naked Turns . | . . Heaviest Build 31 | 15 31 Greatest Support 26 | 26 26 Greatest Overweight (x) 1 | . 1 Average Overweight (x) . | . . Largest Inventory Capacity 15 | 8 15 Average Capacity 8 | 7 8 Most Carried 7 | 5 7 Average Carried 5 | 2 5 Final Capacity 15 | 8 15 Final Carried 6 | 3 6 Class Distribution -------------------- 100% | Mutant Dominant Class ---------------- Mutant | -10/Materials Resources | -11 -10 ----------- Run | Yrd Mat Matter Collected 416 | 243 173 Remotely . | . . Salvage Created 438 | 150 288 Parts 32 | 18 14 Haulers Intercepted 1 | . 1 Recyclers Shooed 1 | . 1 Parts Field Recycled . | . . Retrieved Matter . | . . Parts Self-Destructed . | . . Prevented . | . . Kills | -11 -10 ------- Run | Yrd Mat Combat Hostiles Destroyed 5 | . 5 Guns 4 | . 4 AOE 1 | . 1 Classes Destroyed 6 | 2 4 Worker 2 | . 2 Tunneler 5 | 5 . Hauler 1 | . 1 Recycler 2 | 1 1 Swarmer 3 | . 3 Grunt 2 | . 2 Best Kill Streak 5 | 5 5 Combat Bots Only 2 | . 2 Max Kills in Single Turn 2 | 1 2 Gunslinging . | . . Exploded 1 | . 1 Melee . | . . Uniques/NPCs Destroyed . | . . Combat | -11 -10 -------- Run | Yrd Mat Hostile Shots Fired 59 | . 59 Missed 11 | . 11 Damage Taken 1164 | . 1164 Core 252 | . 252 Absorbed by Shields . | . . Core Remaining (%) 100 | 100 . Volleys Fired 52 | 15 37 Largest 2 | 2 2 Hottest 80 | 70 80 Shots Fired 98 | 30 68 Gun 86 | 30 56 Cannon . | . . Launcher 12 | . 12 Special . | . . Kinetic 36 | 15 21 Thermal 50 | 15 35 Explosive 12 | . 12 Electromagnetic . | . . Robot Hit Streak 8 | 8 7 Robot Miss Streak 4 | 4 4 Penetration Max . | . . Secondary Targets 1 | . 1 Max Gunslinging Chain 1 | . 1 Shots Hit Robots 48 | 17 31 Core Hits 21 | 7 14 Critical Kills . | . . Critical Parts Destroyed . | . . Critical Strikes 1 | . 1 Burn 1 | . 1 Melee Attacks . | . . Impact . | . . Slashing . | . . Piercing . | . . Sneak Attacks . | . . Combat Hostiles . | . . Follow-up Attacks . | . . Damage Inflicted 692 | 213 479 Guns 569 | 213 356 Cannons . | . . Explosions 123 | . 123 Melee . | . . Ramming . | . . Kinetic 256 | 100 156 Thermal 313 | 113 200 Explosive 123 | . 123 Electromagnetic . | . . Impact . | . . Slashing . | . . Piercing . | . . Highest Corruption . | . . Average Corruption . | . . Corruption Purged . | . . Corruption Blocked . | . . Overload Shots . | . . Overflow Damage . | . . Projectiles . | . . Explosions . | . . Melee . | . . Knockbacks . | . . Impact . | . . Kinetic . | . . Secondary . | . . Self-Inflicted Damage 115 | . 115 Shots 6 | . 6 Rammed . | . . Targets Rammed . | . . Kicked . | . . Crushed . | . . Highest Temperature 139 | 36 139 Average Temperature 36 | 16 45 Received Heat Transfer 132 | . 132 Siege Activations . | . . Robots Corrupted . | . . Combat Hostiles . | . . Parts Fried . | . . Impact Corruptions . | . . Robots Melted . | . . Combat Hostiles . | . . Parts Melted 2 | . 2 Heat Transferred 999 | 333 666 Parts Sabotaged . | . . Parts Stolen . | . . Parts Stripped . | . . Power Chain Reactions . | . . Alert | -11 -10 ------- Run | Yrd Mat Peak Influence 236 | 30 236 Initial 19 | . 19 Average 94 | 11 110 Maximum Alert Level 1 | . 1 Low Security (%) 89 | 100 86 Level 1 10 | . 13 Level 2 . | . . Level 3 . | . . Level 4 . | . . Level 5 . | . . High Security . | . . Max Security . | . . Squads Dispatched . | . . Investigation . | . . Extermination . | . . Reinforcement . | . . Assault . | . . Garrison . | . . Intercept . | . . Searches Triggered . | . . Construction Impeded . | . . Haulers Reinforced . | . . Active Scanning Responses . | . . Cargo Convoy Interrupts . | . . Stealth | -11 -10 --------- Run | Yrd Mat Distress Signals 1 | . 1 Communications Jammed . | . . Distress Signals . | . . Times Spotted 11 | . 11 Peak Tracking Total 5 | . 5 Tactical Retreats 1 | . 1 Traps | -11 -10 ------- Run | Yrd Mat Traps Triggered . | . . Indirectly . | . . Trap Hack Attempts . | . . Triggered . | . . Disarmed . | . . Reprogrammed . | . . Reused . | . . Traps Extracted . | . . Installed . | . . Triggered . | . . Machines | -11 -10 ---------- Run | Yrd Mat Machines Disabled 2 | . 2 Max in Single Turn 1 | . 1 Machines Repaired . | . . Machines Dismantled . | . . Machines Sabotaged . | . . Overloaded Fab Kills . | . . Hacking | -11 -10 --------- Run | Yrd Mat Machines Accessed 2 | . 2 Terminals 2 | . 2 Fabricators . | . . Repair Stations . | . . Recycling Units . | . . Scanalyzers . | . . Garrison Access . | . . Total Hacks 4 | . 4 Successful 2 | . 2 Failed 2 | . 2 Catastrophic . | . . Database Lockouts . | . . Manual . | . . Terminals 4 | . 4 Fabricators . | . . Repair Stations . | . . Recycling Units . | . . Scanalyzers . | . . Garrison Access . | . . Terminal Hacks 2 | . 2 Zone Layout 2 | . 2 Fabricator Hacks . | . . Repair Station Hacks . | . . Recycling Unit Hacks . | . . Scanalyzer . | . . Garrison Access Hacks . | . . Unauthorized Hacks . | . . Terminals . | . . Fabricators . | . . Repair Stations . | . . Recycling Units . | . . Scanalyzers . | . . Garrison Access . | . . Data Cores Recovered . | . . Used . | . . Hacking Detections 2 | . 2 Full Trace Events . | . . Feedback Events . | . . Feedback Blocked . | . . Robot Schematics Acquired . | . . Robots Built . | . . Authchips . | . . Time . | . . Total Robot Build Rating . | . . Part Schematics Acquired . | . . Parts Built . | . . Authchips . | . . Time . | . . Total Part Build Rating . | . . Parts Repaired . | . . Time . | . . Parts Recycled . | . . Recycled Matter . | . . Retrieved Matter . | . . Retrieved Components . | . . Parts Scanalyzed . | . . Part Schematics Acquired . | . . Parts Damaged . | . . Bothacking | -11 -10 ------------ Run | Yrd Mat Used RIF Installer . | . . Robots Hacked . | . . Non-combat . | . . Combat . | . . Robot Hacks Applied . | . . Relay Couplers Released . | . . Fabnet Peak Effective % . | . . Robots Rewired . | . . Allies Hacked . | . . Hacks Repelled . | . . Allies | -11 -10 -------- Run | Yrd Mat Total Allies . | . . Largest Group . | . . Highest-Rated Group . | . . Highest-Rated Ally . | . . Total Orders . | . . Ally Attacks . | . . Total Damage . | . . Kills . | . . Allies Corrupted . | . . Allies Melted . | . . Intel | -11 -10 ------- Run | Yrd Mat Robot Analysis Total . | . . Derelict Logs Recovered . | . . Drone Launches . | . . Drone Recoveries . | . . Exploration | -11 -10 ------------- Run | Yrd Mat Turns Passed 581 | 97 484 Spaces Moved 398 | 42 356 Core 9 | 9 . Treads 1 | 1 . Legs . | . . Wheels 388 | 32 356 Hover . | . . Flight . | . . Fastest Speed 50 | 50 90 Average Speed 90 | 83 91 Slowest Speed 160 | 160 115 Overloaded Moves . | . . Propulsion Burnouts . | . . Robots Hopped . | . . Cave-ins Triggered 2 | . 2 Exploration Rate (%) 27 | 4 51 Regions Visited 1 Branch Regions . Pre-discovered Areas . | . . Known Exits Taken . | . . Unknown Exits Taken 1 | 1 . Scrap Searched . | . . Spaces Dug 56 | . 56 Terrain Destroyed 78 | . 78 Melee . | . . Projectile . | . . AOE 78 | . 78 Terrain Rammed . | . . Walls Destroyed . | . . Machines Disabled . | . . Actions | -11 -10 --------- Run | Yrd Mat Total 520 | 73 447 Wait 41 | . 41 Move 396 | 41 355 Hop . | . . Pick Up 16 | 8 8 Fast Attach 2 | 2 . Attach 10 | 6 4 Detach 1 | 1 . Swap 1 | . 1 Drop 1 | . 1 Fire 52 | 15 37 Melee . | . . Ram . | . . Kick . | . . Crush . | . . Escape Stasis . | . . Rewire . | . . Trap . | . . Miscellaneous . | . . Route ------- -11/Scrapyard -10/Materials (discovered 1 exit: [*Mat]) History --------- Turn | Location | Event 6 | -11/Scrapyard | Discovered new exit (range 15) 98 | -11/Scrapyard | Entered Materials 308 | -10/Materials | Build established: Mutant 433 | -10/Materials | Lost 4 parts (1p1u2w) 455 | -10/Materials | Discovered new exit (range 16) 582 | -10/Materials | Crushed by falling debris 582 | -10/Materials | Crushed by falling debris 582 | -10/Materials | Smashed by cave-in Last Messages --------------- K-01 Serf collects debris. Acquired Lgt. Cannon. Acquired Lrg. Storage Unit. Dropped Sml. Storage Unit. The unstable cave ceiling collapses. R-06 Scavenger collects Sml. Storage Unit. The unstable cave ceiling collapses. Repair Station disabled. The unstable cave ceiling collapses. Crushed by falling debris. Wheel destroyed. System corrupted by crushing effect (+2). Imp. Terrain Scanner destroyed. System corrupted by crushing effect (+5). The unstable cave ceiling collapses. Crushed by falling debris. Ion Engine destroyed. System corrupted by crushing effect (+3). Grenade Launcher destroyed. System corrupted by crushing effect (+2). Map ----- +----------------------------------------------------+ | ?????????#???# #?# ##??##?????#????????? | | ?##??######### ### #???#????#??????? ? ? | | ?????# ## #?# #?????#?????#???????? | | ?????# """## #?# #??????????#?#??????# | | ?????# """## #?# ##????###???????????? | | ???### """## #?# #????????#?########## | | ?????# ## ################### # | | ???#?# ## % # """ # | | ?????##+##+### # ! " " # | | ??????# # " # | | ?#????# ############### # # | | ??????# #??????#??????# # = # | | ???#### ###???#?????????# # ! # | | ???# #???????????????# # "Y" # | | ???# #?#?????????????# / """ # | | ???# T #??#????##??#???# ########## | | ???# #????????????#??# ## # | | ???# """ #???????#????#??# ## # | | ??## """ #?#??????##?????# ## # | | ???# """ #????#?#???#????# ## """ # | | ???# """ ######??######### ## """ # | | ???# """ # #### # # ## """ # | | ???# # # # ^ # | | ???# # "" # # """ # | | ???# # R" # # + """ # | | ???# + "" @ # """ # | | ??#####+## # " # # # r # =# | | ??# # # T #### ########## | | ??# """# # " #??### ##### !###???? | | ??# """# # #??#?###???# !#????? | | ??# """# ######??#?#???#?# < #????# | | ??# # ##???#????#?#?#?# !#????? | | ?## #######???#???????????##### !#????? | | ??########???????????#??????#??????# !##????? | | ???????????????????????????????????####?????? | | #??????????????????????????#???#????????????? | | ?????????????#???????#????#?????????????????? | | ????????????#????????????????????#??????????? | | | | | | | | | | | | | | | | | | | | | | | | | +----------------------------------------------------+ Best States ------------- Heat Dissipation 25 Energy Generation 10 Energy Capacity 250 Matter Stores 300 Matter Capacity 300 Sight Range 16 Terrain Scan Range 16 Terrain Scan Density 10 Evasion (%) 50 Item Schematics ----------------- None Robot Schematics ------------------ None Fabricated ------------ Nothing Alien Tech Used ----------------- None Achievements -------------- None Challenges ------------ None Game ------ Seed AluminumMicroNanoactuators Manual? 0 Play Time 00:09:49 Cumulative 17.5 hours Start 2024.04.15 @ 23:36:11 End 2024.04.15 @ 23:42:01 Sessions 1 Manual Loads 0 Difficulty Rogue Special Mode None Game No. 41 Rogue 39 Adventurer 2 Explorer 0 Win Type - Total 0 Types 0/0/0/0/0/0/0/0/0 Lore% 16 Gallery% 25 Achievement% 19 Wizard Run 0 Options --------- Layout 1 ASCII 0 Keyboard 0 Movement Mouse Keybinds 0 Fullscreen 1 Font 16/SmallcapsGlow Map View 27x19 Zoom Use 98% Tactical HUD 0 Map Filters NONE Filters NONE Steam 1 RUN: 3a64764b-dc1f-4823-a646-3025615547a6